bitfinex/quotes_BTCUSD_20251010
["timestamp","ask_amount","ask_price","bid_price","bid_amount"]
[1760111308857,0.27528738,119430.0,119400.0,0.21728201]
[1760111309062,0.19246613,119420.0,119400.0,0.13290206]
[1760111309287,0.10548,119410.0,119400.0,0.25436]
[1760111309493,0.30127192,119410.0,119400.0,0.25336]
[1760111309840,0.30127192,119410.0,119390.0,0.2547675]
[1760111310040,0.10548,119410.0,119390.0,0.4222843]
[1760111310259,0.04315,119410.0,119390.0,0.4718943]
[1760111310462,0.04315,119410.0,119390.0,0.5674643]
[1760111310676,0.34,119420.0,119400.0,0.45700624]
[1760111310877,0.00015066,119420.0,119410.0,0.47042015]
[1760111311081,0.00015066,119420.0,119410.0,0.71031221]
[1760111311317,0.00015066,119420.0,119410.0,0.5188211]
[1760111311570,0.00015066,119420.0,119410.0,0.39827095]
[1760111311767,0.19425679,119420.0,119400.0,0.04961]
[1760111311952,0.16749015,119410.0,119390.0,0.0510175]
[1760111312240,0.54237059,119420.0,119400.0,0.25328]
[1760111312613,0.53399796,119420.0,119400.0,0.30289]
[1760111312821,0.53399796,119420.0,119400.0,0.25328]
[1760111313030,0.5345254,119420.0,119400.0,0.47039155]
[1760111313240,0.19723015,119410.0,119390.0,0.21853316]
[1760111313446,0.02945,119410.0,119400.0,0.25328]
[1760111313655,0.3670481,119420.0,119400.0,0.53159418]
[1760111313878,0.3670481,119420.0,119400.0,0.62716418]
[1760111314055,0.0006781,119420.0,119410.0,0.39579221]
[1760111314304,0.0006781,119420.0,119410.0,0.45699221]
[1760111315137,0.0006781,119420.0,119410.0,0.79075221]
[1760111315314,0.0006781,119420.0,119410.0,0.45699221]
[1760111315760,0.0006781,119420.0,119410.0,0.71023221]
[1760111315966,0.0006781,119420.0,119410.0,0.79075221]
[1760111316172,0.0006781,119420.0,119410.0,0.71023221]
[1760111316380,0.0006781,119420.0,119410.0,0.45699221]
[1760111316770,0.0006781,119420.0,119410.0,0.36142221]
[1760111317021,0.19789423,119420.0,119400.0,0.04961]
[1760111317227,0.0304181,119420.0,119410.0,0.2532]
[1760111317660,0.19789423,119420.0,119410.0,0.2532]
[1760111317877,0.0304181,119420.0,119400.0,0.13273206]
[1760111318085,0.1945106,119410.0,119390.0,0.1315375]
[1760111318288,0.1945106,119410.0,119400.0,0.2532]
[1760111318289,0.02702,119410.0,119400.0,0.2532]
[1760111318490,0.02702,119410.0,119400.0,0.16750418]
[1760111318694,0.0006781,119420.0,119410.0,0.16749015]
[1760111318912,0.0006781,119420.0,119410.0,0.45699221]
[1760111319323,0.0006781,119420.0,119410.0,0.55122806]
[1760111319740,0.0006781,119420.0,119410.0,0.52107616]
[1760111319948,0.0744481,119420.0,119400.0,0.04961]
[1760111320158,0.0744481,119420.0,119410.0,0.25316]
[1760111320565,0.24209423,119420.0,119410.0,0.25416]
[1760111320770,0.0746181,119420.0,119410.0,0.25316]
[1760111320983,0.0482381,119420.0,119410.0,0.25316]
[1760111321612,0.24209423,119420.0,119410.0,0.25316]
[1760111321822,0.0746181,119420.0,119410.0,0.25316]
[1760111322037,0.0006781,119420.0,119410.0,0.53146015]
[1760111322244,0.0006781,119420.0,119410.0,0.77377761]
[1760111322663,0.0006781,119420.0,119410.0,0.67816761]
[1760111322878,0.0006781,119420.0,119410.0,0.77373761]
[1760111323612,0.0006781,119420.0,119410.0,0.67816761]
[1760111323811,0.0006781,119420.0,119410.0,0.52061761]
[1760111324193,0.0006781,119420.0,119410.0,0.88436951]
[1760111324411,0.0006781,119420.0,119410.0,0.88432951]
[1760111324844,0.08421184,119470.0,119460.0,0.16742005]
[1760111325187,0.07404494,119470.0,119460.0,0.25308]
[1760111325607,0.24828595,119470.0,119460.0,0.25308]
[1760111325819,0.16742271,119460.0,119440.0,0.17581528]
[1760111326025,0.0552588,119460.0,119450.0,0.25308]
[1760111326235,0.05525425,119460.0,119450.0,0.42051407]
[1760111326349,0.05525425,119460.0,119440.0,0.30854734]
[1760111326558,0.05525425,119460.0,119450.0,0.42051407]
[1760111326763,0.05525425,119460.0,119450.0,0.25308]
[1760111327196,0.2233543,119460.0,119440.0,0.37086937]
[1760111327409,0.001,119460.0,119450.0,0.48708803]
[1760111328047,0.001,119460.0,119450.0,0.61440613]
[1760111328484,0.002,119460.0,119450.0,0.70728613]
[1760111329113,0.00015111,119470.0,119460.0,0.16742005]
[1760111329328,0.00015111,119470.0,119460.0,0.21405005]
[1760111329490,0.00015111,119470.0,119460.0,0.46705005]
[1760111329893,0.00015111,119470.0,119460.0,0.29963]
[1760111330095,0.28242715,119470.0,119450.0,0.001]
[1760111330303,0.28242715,119470.0,119460.0,0.254]
[1760111330505,0.11765708,119470.0,119460.0,0.254]
[1760111330698,0.00278708,119470.0,119460.0,0.46905005]
[1760111330900,0.00278708,119470.0,119460.0,0.74064401]
[1760111331103,0.00278708,119470.0,119460.0,0.73964401]
[1760111331706,1e-08,119470.0,119460.0,0.73864401]
[1760111331915,0.0225609,119510.0,119500.0,0.16736401]
[1760111332186,0.02306439,119510.0,119500.0,0.73854797]
[1760111332332,0.00050349,119510.0,119500.0,0.73854797]
[1760111333806,0.00050349,119510.0,119500.0,0.74054797]
[1760111334776,0.0002,119540.0,119530.0,0.16732201]
[1760111334981,0.00035101,119540.0,119530.0,0.66058597]
[1760111335164,0.00035101,119540.0,119530.0,0.81890597]
[1760111335992,0.00035101,119540.0,119530.0,0.88094889]
[1760111336197,0.00035101,119540.0,119530.0,0.54758889]
[1760111336407,0.00035101,119540.0,119530.0,0.61195699]
[1760111337224,0.00035101,119540.0,119530.0,0.67735699]
[1760111338731,0.00035101,119540.0,119530.0,0.25723498]
[1760111338944,0.59429902,119540.0,119530.0,0.31480292]
[1760111339154,0.38105844,119540.0,119530.0,0.31480292]
[1760111339338,0.55600031,119540.0,119530.0,0.31480292]
[1760111339592,0.3886923,119540.0,119530.0,0.48212493]
[1760111339812,0.3883223,119540.0,119530.0,0.29786]
[1760111340013,0.3516723,119540.0,119530.0,0.52955201]
[1760111340450,0.0116723,119540.0,119530.0,0.70652407]
[1760111340668,0.00403844,119540.0,119530.0,0.70652407]
[1760111341106,0.00403844,119540.0,119530.0,0.73667597]
[1760111341538,0.00403844,119540.0,119530.0,0.77096959]
[1760111342048,0.00403844,119540.0,119530.0,0.85136959]
[1760111342475,0.00403844,119540.0,119530.0,0.51820959]
[1760111342684,0.00403844,119540.0,119530.0,0.19259206]
[1760111342896,0.09067844,119540.0,119510.0,0.22234725]
[1760111343114,0.04538,119530.0,119520.0,0.50313766]
[1760111343361,0.04538,119530.0,119510.0,0.21397989]
[1760111343362,0.21319209,119530.0,119510.0,0.21397989]
[1760111343569,0.04587,119530.0,119520.0,0.48158716]
[1760111343791,0.04587,119530.0,119520.0,0.25268]
[1760111344012,0.56385371,119530.0,119490.0,0.39513692]
[1760111344219,0.09452,119520.0,119490.0,0.29559878]
[1760111344426,0.26185658,119520.0,119500.0,0.42004328]
[1760111344634,0.04551,119510.0,119500.0,0.42004328]
[1760111344843,0.0451,119520.0,119500.0,0.46514328]
[1760111345266,0.0451,119520.0,119510.0,0.16735001]
[1760111345489,0.0451,119520.0,119500.0,0.46514328]
[1760111345712,0.0451,119520.0,119510.0,0.16735001]
[1760111346147,0.26242622,119520.0,119500.0,0.48388439]
[1760111346359,0.04506,119510.0,119500.0,0.0638411]
[1760111346573,0.16737802,119490.0,119460.0,0.0451]
[1760111346782,0.16737802,119490.0,119470.0,0.42004545]
[1760111346783,0.13571,119480.0,119470.0,0.42004545]
[1760111346993,0.04071,119480.0,119470.0,0.42004545]
[1760111347219,0.04071,119480.0,119470.0,0.25264]
[1760111347430,0.04071,119480.0,119470.0,0.42004604]
[1760111347843,0.04071,119480.0,119470.0,0.42054953]
[1760111348533,0.25761203,119480.0,119470.0,0.25314349]
[1760111348749,0.89761203,119480.0,119470.0,0.00050349]
[1760111348966,1.27415869,119480.0,119470.0,0.00050349]
[1760111349396,1.10676666,119480.0,119470.0,0.00050349]
[1760111349650,1.19103663,119480.0,119470.0,0.00050349]
[1760111350283,1.0236446,119480.0,119470.0,0.00050349]
[1760111350492,1.0236446,119480.0,119470.0,0.42050953]
[1760111350710,0.9760846,119480.0,119470.0,0.42050953]
[1760111350936,0.9760846,119480.0,119470.0,0.25310349]
[1760111350937,0.6751346,119480.0,119470.0,0.25310349]
[1760111351146,0.6751346,119480.0,119470.0,0.42050953]
[1760111351784,0.001,119480.0,119470.0,0.62382953]
[1760111352023,0.001,119480.0,119470.0,0.70695159]
[1760111352235,0.002,119480.0,119470.0,0.70695159]
[1760111352684,0.002,119480.0,119470.0,0.73710349]
[1760111352926,0.002,119480.0,119470.0,0.56969745]
[1760111353155,0.002,119480.0,119470.0,0.54873159]
[1760111353355,0.002,119480.0,119470.0,0.61310159]
[1760111353810,0.04071,119500.0,119490.0,0.16737802]
[1760111354020,0.38596,119510.0,119500.0,0.16736401]
[1760111354227,0.38596,119510.0,119490.0,0.46507802]
[1760111354228,0.39364572,119510.0,119490.0,0.46307802]
[1760111354655,0.09524,119500.0,119480.0,0.10861278]
[1760111354844,0.09524,119500.0,119490.0,0.2526]
[1760111355087,0.04071,119490.0,119480.0,0.06351278]
[1760111355323,0.04071,119490.0,119470.0,0.00050349]
[1760111355324,0.16739203,119480.0,119470.0,0.00050349]
[1760111355528,0.84770203,119480.0,119470.0,0.00050349]
[1760111355732,1.19809203,119480.0,119470.0,0.00050349]
[1760111356401,1.28121409,119480.0,119470.0,0.00050349]
[1760111356610,1.58121409,119480.0,119470.0,0.25306349]
[1760111356818,1.28121409,119480.0,119470.0,0.25306349]
[1760111357030,1.58121409,119480.0,119470.0,0.00050349]
[1760111357456,1.66891426,119480.0,119470.0,0.00050349]
[1760111357664,1.58891746,119480.0,119470.0,0.00050349]
[1760111358490,1.58321409,119480.0,119470.0,0.00050349]
[1760111359181,1.59191921,119480.0,119470.0,0.00050349]
[1760111359818,0.98121409,119480.0,119470.0,0.00050349]
[1760111360028,0.98221409,119480.0,119470.0,0.00050349]
[1760111360227,1.2909326,119480.0,119470.0,0.00050349]
[1760111360441,1.2899326,119480.0,119470.0,0.00050349]
[1760111360566,1.2889326,119480.0,119470.0,0.00050349]
[1760111360780,1.2899326,119480.0,119470.0,0.00050349]
[1760111360999,1.5899326,119480.0,119470.0,0.00050349]
[1760111361195,1.2899326,119480.0,119470.0,0.00050349]
[1760111361606,0.82154057,119480.0,119470.0,0.00050349]
[1760111361807,0.73841851,119480.0,119470.0,0.00050349]
[1760111362006,0.6340864,119490.0,119480.0,0.16739203]
[1760111362207,0.30111599,119490.0,119480.0,0.31693]
[1760111362424,0.55919401,119490.0,119470.0,0.04560349]
[1760111362629,0.20859203,119480.0,119470.0,0.00050349]
[1760111362797,0.54859203,119480.0,119470.0,0.25306349]
[1760111362996,0.60001203,119480.0,119470.0,0.25306349]
[1760111363416,0.59801203,119480.0,119470.0,0.25306349]
[1760111363636,0.38942,119480.0,119470.0,0.25306349]
[1760111363842,0.55781203,119480.0,119470.0,0.25306349]
[1760111364472,0.55781203,119480.0,119470.0,0.25302349]
[1760111364473,0.89249903,119480.0,119470.0,0.25302349]
[1760111365171,0.97562109,119480.0,119470.0,0.25302349]
[1760111365371,0.97514813,119480.0,119470.0,0.25302349]
[1760111365707,0.8075861,119480.0,119470.0,0.00050349]
[1760111365863,1.02446404,119480.0,119470.0,0.25302349]
[1760111366062,1.19185607,119480.0,119470.0,0.25302349]
[1760111366304,1.27555813,119480.0,119470.0,0.00050349]
[1760111366515,1.283289,119480.0,119470.0,0.25302349]
[1760111367567,1.1075861,119480.0,119470.0,0.25302349]
[1760111367771,1.27497813,119480.0,119470.0,0.25302349]
[1760111368185,1.27555813,119480.0,119470.0,0.25302349]
[1760111368396,1.28328992,119480.0,119470.0,0.25302349]
[1760111368613,1.06589789,119480.0,119470.0,0.25302349]
[1760111368830,0.97504404,119480.0,119470.0,0.42042953]
[1760111369042,0.34052704,119480.0,119470.0,0.52925953]
[1760111369862,0.34052704,119480.0,119470.0,0.30135349]
[1760111370070,0.54951907,119480.0,119470.0,0.00050349]
[1760111370275,0.6062618,119480.0,119470.0,0.00050349]
[1760111370485,0.8596755,119480.0,119470.0,0.00050349]
[1760111370694,0.94279756,119480.0,119470.0,0.00050349]
[1760111370903,1.24279693,119480.0,119470.0,0.00050349]
[1760111371248,0.94279693,119480.0,119470.0,0.00050349]
[1760111371660,1.24279693,119480.0,119470.0,0.00050349]
[1760111372492,1.58279693,119480.0,119470.0,0.00050349]
[1760111373085,1.59826811,119480.0,119470.0,0.00050349]
[1760111373402,1.61731592,119480.0,119470.0,0.00050349]
[1760111373634,1.61831592,119480.0,119470.0,0.00050349]
[1760111373853,1.61731592,119480.0,119470.0,0.00050349]
[1760111374049,1.64646782,119480.0,119470.0,0.00050349]
[1760111374257,1.82846461,119480.0,119470.0,0.00050349]
[1760111374668,1.71731591,119480.0,119470.0,0.00050349]
[1760111374842,1.61731592,119480.0,119470.0,0.00050349]
[1760111375047,1.71831591,119480.0,119470.0,0.00050349]
[1760111375460,2.01835736,119480.0,119470.0,0.00050349]
[1760111375628,1.91735737,119480.0,119470.0,0.00050349]
[1760111375992,2.12850606,119480.0,119470.0,0.00050349]
[1760111376205,2.04850926,119480.0,119470.0,0.00050349]
[1760111376388,1.94850927,119480.0,119470.0,0.00050349]
[1760111376609,2.04850926,119480.0,119470.0,0.00050349]
[1760111377529,1.94850927,119480.0,119470.0,0.00050349]
[1760111377742,2.02850607,119480.0,119470.0,0.00050349]
[1760111378817,1.93046146,119480.0,119470.0,0.00050349]
[1760111379236,1.85270956,119480.0,119470.0,0.00050349]
[1760111379454,0.66030956,119480.0,119470.0,0.00050349]
[1760111379672,1.26030956,119480.0,119470.0,0.00050349]
[1760111379889,1.90030956,119480.0,119470.0,0.00050349]
[1760111380614,1.60030956,119480.0,119470.0,0.00050349]
[1760111380828,1.13291753,119480.0,119470.0,0.00050349]
[1760111381038,1.30030956,119480.0,119470.0,0.00050349]
[1760111381247,1.29256132,119480.0,119470.0,0.00050349]
[1760111381475,1.29256132,119480.0,119470.0,0.16790953]
[1760111381476,0.78516929,119480.0,119470.0,0.16790953]
[1760111381690,0.33705074,119480.0,119470.0,0.46859953]
[1760111381853,0.00252704,119480.0,119470.0,0.52909953]
[1760111382078,0.00252704,119480.0,119470.0,0.62135953]
[1760111382302,0.00252704,119480.0,119470.0,0.81511349]
[1760111382443,0.00152704,119480.0,119470.0,0.48227349]
[1760111382648,0.00152704,119480.0,119470.0,0.81511349]
[1760111382845,0.00252704,119480.0,119470.0,0.78496159]
[1760111383290,0.00052704,119480.0,119470.0,0.78496159]
[1760111383509,0.00052704,119480.0,119470.0,0.69270159]
[1760111383709,0.00052704,119480.0,119470.0,0.69370159]
[1760111383961,0.00052704,119480.0,119470.0,0.78596159]
[1760111384369,0.00052704,119480.0,119470.0,0.78496159]
[1760111384584,0.00052704,119480.0,119470.0,0.81511349]
[1760111385422,1e-08,119480.0,119470.0,1.93711336]
[1760111385630,1e-08,119480.0,119470.0,0.88633781]
[1760111385839,1e-08,119480.0,119470.0,1.54101781]
[1760111386054,1e-08,119480.0,119470.0,0.88633781]
[1760111386265,1e-08,119480.0,119470.0,0.42392591]
[1760111386488,1e-08,119480.0,119470.0,0.67620591]
[1760111386895,1e-08,119480.0,119470.0,0.67720591]
[1760111387109,1e-08,119480.0,119470.0,0.76946591]
[1760111387989,0.16736401,119500.0,119480.0,0.16738113]
[1760111388198,0.91181368,119510.0,119490.0,0.4196139]
[1760111388408,0.91181368,119510.0,119490.0,0.4665039]
[1760111388409,0.63997,119510.0,119490.0,0.4665039]
[1760111388615,0.63997,119510.0,119500.0,0.16736401]
[1760111388813,0.50064851,119510.0,119490.0,0.4665039]
[1760111389051,0.20732001,119510.0,119490.0,0.4665039]
[1760111389466,0.02354,119500.0,119490.0,0.46650801]
[1760111389693,0.19090401,119500.0,119480.0,0.24787185]
[1760111389885,0.19090401,119500.0,119490.0,0.25224]
[1760111390093,0.54623131,119500.0,119490.0,0.25224]
[1760111390304,0.92935337,119500.0,119490.0,0.2522]
[1760111390557,0.16738203,119490.0,119470.0,0.2803038]
[1760111390801,0.16738203,119490.0,119480.0,0.2522]
[1760111390802,0.46738203,119490.0,119480.0,0.2522]
[1760111391093,1.19783863,119490.0,119480.0,0.2522]
[1760111391366,0.16739203,119480.0,119470.0,0.00050349]
[1760111391653,1.28095668,119490.0,119470.0,0.42010897]
[1760111391897,0.06197,119480.0,119470.0,0.16790953]
[1760111392146,1.05160866,119490.0,119480.0,0.16739203]
[1760111392389,0.34,119490.0,119480.0,0.27777203]
[1760111392621,0.34,119490.0,119480.0,0.37505203]
[1760111392833,0.36611032,119520.0,119490.0,0.16737802]
[1760111392972,0.48086558,119520.0,119510.0,0.16735001]
[1760111393180,0.02264352,119520.0,119510.0,0.27773001]
[1760111393380,0.02264352,119520.0,119510.0,0.37501001]
[1760111393772,0.02264352,119520.0,119510.0,0.43650473]
[1760111393994,0.33948642,119520.0,119510.0,0.25216]
[1760111394259,0.33948642,119520.0,119510.0,0.41951001]
[1760111394260,0.33963741,119520.0,119510.0,0.41951001]
[1760111394753,0.02279451,119520.0,119510.0,0.52989001]
[1760111397355,0.02279451,119520.0,119510.0,0.06192151]
[1760111397356,0.21367052,119520.0,119510.0,0.06192151]
[1760111397594,0.21367052,119520.0,119510.0,0.41947001]
[1760111397819,0.55367052,119520.0,119500.0,0.21425328]
[1760111398062,0.06186,119510.0,119500.0,0.16736367]
[1760111398308,0.55367052,119520.0,119500.0,0.16736367]
[1760111398309,0.55367052,119520.0,119500.0,0.41944367]
[1760111398756,0.38633451,119520.0,119510.0,0.16735001]
[1760111398986,0.55577789,119520.0,119500.0,0.46741367]
[1760111399215,0.03997,119510.0,119500.0,0.46741367]
[1760111399513,0.04155066,119510.0,119500.0,0.46741401]
[1760111400190,0.20600067,119510.0,119490.0,0.04689]
[1760111400410,0.20536401,119500.0,119490.0,0.25204]
[1760111400658,0.03905386,119500.0,119490.0,0.16737802]
[1760111400868,0.03905386,119500.0,119490.0,0.41941802]
[1760111401092,0.00105386,119500.0,119490.0,0.70848008]
[1760111401345,0.00105386,119500.0,119490.0,0.73863198]
[1760111401585,0.00105386,119500.0,119490.0,0.8002437]
[1760111402508,1e-08,119500.0,119490.0,0.8002437]
[1760111402997,1e-08,119500.0,119490.0,0.5482037]
[1760111403311,1e-08,119500.0,119490.0,1.2024837]
[1760111403798,1e-08,119500.0,119490.0,0.5482037]
[1760111404009,1e-08,119500.0,119490.0,1.2024437]
[1760111404839,1e-08,119500.0,119490.0,0.5482037]
[1760111405047,1e-08,119500.0,119490.0,1.2024037]
[1760111405270,1e-08,119500.0,119490.0,0.5482037]
[1760111405681,1e-08,119500.0,119490.0,0.5180518]
[1760111405910,0.03707001,119500.0,119480.0,0.12733]
[1760111406118,0.0351,119490.0,119480.0,0.08044]
[1760111406322,0.0351,119490.0,119480.0,0.49975203]
[1760111407229,0.0351,119490.0,119480.0,0.16739203]
[1760111407418,0.37707,119500.0,119490.0,0.16737802]
[1760111407636,0.34,119500.0,119490.0,0.37331802]
[1760111407840,0.37707,119500.0,119490.0,0.4813931]
[1760111408054,0.34,119500.0,119490.0,0.2774431]
[1760111408256,1.16509046,119500.0,119480.0,0.16839113]
[1760111408461,0.54247802,119490.0,119480.0,0.001]
[1760111408885,0.54247802,119490.0,119480.0,0.25188]
[1760111409103,0.76740439,119480.0,119460.0,0.16882642]
[1760111409287,1.13816203,119480.0,119470.0,0.25188]
[1760111409505,1.49344093,119480.0,119470.0,0.25188]
[1760111409708,0.37077,119480.0,119470.0,0.41928604]
[1760111410117,0.53816203,119480.0,119470.0,0.25188]
[1760111410275,0.37077,119480.0,119470.0,0.41978953]
[1760111410488,0.34,119480.0,119470.0,0.53061953]
[1760111410692,0.37077,119480.0,119470.0,0.04847349]
[1760111410871,0.37077,119480.0,119470.0,0.41978953]
[1760111411664,0.6641722,119480.0,119470.0,0.42172271]
[1760111412339,0.37077,119480.0,119470.0,0.42172271]
[1760111412546,0.34,119480.0,119470.0,0.53255271]
[1760111412901,0.37077,119480.0,119470.0,0.42172271]
[1760111413553,0.34,119480.0,119470.0,0.62766271]
[1760111413708,0.34,119480.0,119470.0,0.21781271]
[1760111413912,0.83156733,119480.0,119470.0,0.25427667]
[1760111414113,1.21468939,119480.0,119470.0,0.00243667]
[1760111414367,1.21468939,119480.0,119470.0,0.12843667]
[1760111414594,1.2301433,119480.0,119470.0,0.12843667]
[1760111414786,1.21468939,119480.0,119470.0,0.12843667]
[1760111414999,1.24197939,119480.0,119470.0,0.12843667]
[1760111415200,1.07458736,119480.0,119470.0,0.12843667]
[1760111415400,1.07458736,119480.0,119470.0,0.29584271]
[1760111415634,1.24197939,119480.0,119470.0,0.00243667]
[1760111416042,1.07458736,119480.0,119470.0,0.00243667]
[1760111416465,1.24197939,119480.0,119470.0,0.00243667]
[1760111416836,0.9914653,119480.0,119470.0,0.00243667]
[1760111417042,0.9641753,119480.0,119470.0,0.16984271]
[1760111417267,1.13156733,119480.0,119470.0,0.00243667]
[1760111417479,1.14700001,119480.0,119470.0,0.25427667]
[1760111417682,1.21468939,119480.0,119470.0,0.00243667]
[1760111417889,1.23012415,119480.0,119470.0,0.00243667]
[1760111418094,1.24197939,119480.0,119470.0,0.18603667]
[1760111418321,1.25740584,119480.0,119470.0,0.00243667]
[1760111418529,1.55740584,119480.0,119470.0,0.00243667]
[1760111418743,1.57539174,119480.0,119470.0,0.00243667]
[1760111418974,1.61325234,119480.0,119470.0,0.00243667]
[1760111419187,1.61425234,119480.0,119470.0,0.00243667]
[1760111419390,1.63674564,119480.0,119470.0,0.00243667]
[1760111419624,1.61425234,119480.0,119470.0,0.00243667]
[1760111420238,1.86605234,119480.0,119470.0,0.00243667]
[1760111420455,1.86505234,119480.0,119470.0,0.00243667]
[1760111420660,1.87522961,119480.0,119470.0,0.00243667]
[1760111421075,2.00022959,119480.0,119470.0,1e-08]
[1760111421283,2.00122959,119480.0,119470.0,1e-08]
[1760111421927,1.74025232,119480.0,119470.0,1e-08]
[1760111422148,1.73574233,119480.0,119470.0,1e-08]
[1760111422352,0.48121251,119480.0,119470.0,1e-08]
[1760111422541,0.78121251,119480.0,119470.0,0.16740605]
[1760111422767,1.2885858,119480.0,119470.0,1e-08]
[1760111423185,1.5885858,119480.0,119470.0,1e-08]
[1760111423412,2.0865302,119480.0,119470.0,1e-08]
[1760111423618,2.1186821,119480.0,119470.0,1e-08]
[1760111423819,2.0376853,119480.0,119470.0,1e-08]
[1760111424030,1.95917861,119480.0,119470.0,1e-08]
[1760111424266,1.26753341,119480.0,119470.0,1e-08]
[1760111424470,1.26753341,119480.0,119470.0,0.16740605]
[1760111424471,0.75036138,119480.0,119470.0,0.16740605]
[1760111424713,0.73041377,119480.0,119470.0,0.16740605]
[1760111424931,0.84871528,119480.0,119470.0,1e-08]
[1760111425137,1.67404957,119480.0,119470.0,1e-08]
[1760111425342,1.60646806,119480.0,119470.0,1e-08]
[1760111426199,1.60647026,119480.0,119470.0,1e-08]
[1760111426408,1.62890084,119480.0,119470.0,1e-08]
[1760111426626,1.60647026,119480.0,119470.0,1e-08]
[1760111427042,1.60747026,119480.0,119470.0,1e-08]
[1760111427489,1.85823026,119480.0,119470.0,1e-08]
[1760111427693,1.85722562,119480.0,119470.0,1e-08]
[1760111427899,1.85822562,119480.0,119470.0,1e-08]
[1760111428118,1.85922562,119480.0,119470.0,1e-08]
[1760111428329,1.6298962,119480.0,119470.0,1e-08]
[1760111428541,1.60746562,119480.0,119470.0,1e-08]
[1760111428770,1.14007359,119480.0,119470.0,1e-08]
[1760111428987,1.30746562,119480.0,119470.0,1e-08]
[1760111429416,1.3298962,119480.0,119470.0,1e-08]
[1760111429932,1.65994976,119480.0,119470.0,1e-08]
[1760111430409,1.66767108,119480.0,119470.0,1e-08]
[1760111430633,2.27476924,119480.0,119470.0,1e-08]
[1760111431046,2.2296595,119480.0,119470.0,1e-08]
[1760111431512,0.94,119440.0,119430.0,0.23365471]
[1760111431718,0.7024833,119440.0,119430.0,0.23380582]
[1760111431956,0.7030433,119440.0,119430.0,0.23380582]
[1760111432218,0.4089793,119440.0,119430.0,0.35069492]
[1760111432503,0.3782493,119440.0,119430.0,0.44753492]
[1760111432736,0.3782493,119440.0,119430.0,0.16971989]
[1760111432737,0.40193645,119440.0,119430.0,0.16971989]
[1760111432950,1.0015166,119440.0,119430.0,0.00226021]
[1760111433170,1.0015166,119440.0,119430.0,0.16972232]
[1760111433171,0.69497055,119440.0,119430.0,0.16972232]
[1760111433386,0.40144645,119440.0,119430.0,0.21855232]
[1760111434149,0.35542645,119440.0,119430.0,0.38134232]
[1760111434674,0.45095645,119440.0,119430.0,0.00326021]
[1760111434935,1.64318258,119440.0,119430.0,0.00326021]
[1760111435188,1.32072164,119440.0,119430.0,0.00326021]
[1760111435443,1.34318258,119440.0,119430.0,0.00226021]
[1760111435915,1.17226449,119440.0,119430.0,0.00226021]
[1760111436164,0.44568243,119440.0,119430.0,0.42136232]
[1760111436414,0.42322149,119440.0,119430.0,0.47019232]
[1760111436663,0.42322149,119440.0,119430.0,0.00226021]
[1760111436664,0.42468149,119440.0,119430.0,0.00226021]
[1760111436909,0.84981185,119440.0,119430.0,0.16972232]
[1760111437175,0.71672979,119440.0,119430.0,0.23567232]
[1760111437390,0.04112149,119440.0,119430.0,0.38134232]
[1760111437615,0.02313767,119440.0,119430.0,0.21855232]
[1760111437821,0.14893121,119440.0,119430.0,0.16972232]
[1760111438023,0.06358243,119440.0,119430.0,0.28450232]
[1760111438251,0.06358243,119440.0,119430.0,0.38134232]
[1760111438482,0.04112149,119440.0,119430.0,0.38134232]
[1760111438777,0.04112149,119440.0,119430.0,0.28650232]
[1760111438979,0.04112149,119440.0,119430.0,0.28550232]
[1760111439192,0.04112149,119440.0,119430.0,0.38334232]
[1760111439403,0.02313767,119440.0,119430.0,0.38334232]
[1760111439871,0.01542645,119440.0,119430.0,0.38334232]
[1760111440154,0.02313767,119440.0,119430.0,0.28650232]
[1760111440372,0.04112149,119440.0,119430.0,0.53814232]
[1760111440590,0.04112149,119440.0,119430.0,0.63498232]
[1760111440817,0.04112149,119440.0,119430.0,0.71810438]
[1760111441023,0.02313767,119440.0,119430.0,0.74725628]
[1760111441275,0.02313767,119440.0,119430.0,0.80958981]
[1760111441533,0.05240886,119460.0,119450.0,0.16743407]
[1760111441534,0.01798382,119460.0,119450.0,0.16743407]
[1760111441780,0.01798382,119460.0,119450.0,0.46786407]
[1760111442015,0.01798382,119460.0,119450.0,0.53381407]
[1760111442711,0.07176476,119460.0,119450.0,0.41903407]
[1760111443164,0.04044476,119460.0,119450.0,0.63065407]
[1760111443419,0.04044476,119460.0,119450.0,0.53377407]
[1760111444084,0.04044476,119460.0,119450.0,0.63061407]
[1760111445145,0.01798382,119460.0,119450.0,0.63061407]
[1760111445352,0.04044476,119460.0,119450.0,0.63061407]
[1760111445561,0.01798382,119460.0,119450.0,0.71373613]
[1760111445984,0.01798382,119460.0,119450.0,0.46217613]
[1760111446189,0.01798382,119460.0,119450.0,0.36533613]
[1760111446399,0.07207476,119460.0,119440.0,0.21627809]
[1760111446610,0.44932476,119460.0,119450.0,0.16743407]
[1760111446819,0.69624618,119460.0,119450.0,0.41891407]
[1760111447035,0.74498618,119460.0,119450.0,0.41996844]
[1760111447258,0.69624618,119460.0,119450.0,0.41996844]
[1760111447464,0.66396924,119460.0,119450.0,0.53474844]
[1760111447671,0.07051574,119460.0,119450.0,0.63158844]
[1760111447878,0.04056782,119460.0,119450.0,0.63158844]
[1760111449119,0.04056782,119460.0,119450.0,0.53474844]
[1760111449329,0.01798382,119460.0,119450.0,0.7107105]
[1760111449999,0.01798382,119460.0,119450.0,0.4592305]
[1760111450307,0.01798382,119460.0,119450.0,0.7106705]
[1760111450503,0.04056782,119470.0,119460.0,0.16742005]
[1760111450704,0.04056782,119470.0,119460.0,0.37254005]
[1760111450920,0.04056782,119470.0,119460.0,0.37306719]
[1760111451346,0.07051574,119480.0,119470.0,0.16740604]
[1760111451585,0.04056782,119480.0,119470.0,0.62392604]
[1760111452022,0.04056782,119480.0,119470.0,0.37252604]
[1760111452454,0.022584,119480.0,119470.0,0.46839604]
[1760111452682,0.34,119470.0,119460.0,0.00052714]
[1760111452901,0.40859503,119470.0,119460.0,0.41934719]
[1760111453101,0.47656885,119470.0,119460.0,0.16794719]
[1760111453317,1.02052765,119470.0,119460.0,0.00052714]
[1760111453519,1.07363416,119470.0,119460.0,0.25192714]
[1760111453848,1.05105913,119470.0,119460.0,0.25192714]
[1760111453954,0.85721959,119470.0,119460.0,0.41934719]
[1760111454166,0.77409753,119470.0,119460.0,0.41934719]
[1760111454377,0.74316961,119470.0,119460.0,0.41934719]
[1760111454602,0.69714961,119470.0,119460.0,0.53162719]
[1760111454822,0.40371891,119470.0,119460.0,0.68857454]
[1760111455021,0.04114241,119470.0,119460.0,0.68857454]
[1760111455241,0.00771953,119470.0,119460.0,0.7716966]
[1760111455472,0.03170213,119490.0,119470.0,0.16740604]
[1760111455715,0.03170213,119490.0,119480.0,0.7877368]
[1760111455716,0.02454796,119490.0,119480.0,0.7877368]
[1760111455935,0.0014061,119490.0,119480.0,0.81762599]
[1760111456139,0.0014061,119490.0,119480.0,0.48578599]
[1760111456549,0.0014061,119490.0,119480.0,0.81762599]